Cogmind - Beta 17 @@@ ROGUE MODE // 2026.07.17 @ 09:51:21 Player: pinbox Result: Destroyed by N1-HVP(R) with Subdweller Laser Performance ------------- Evolutions (0) 0 Regions Visited (2) 400 Robots Destroyed (22) 110 Value Destroyed (465) 465 Prototype IDs (0) 0 Alien Tech Used (0) 0 Bonus (0) 0 TOTAL SCORE: 975 Bonus ------- None Cogmind --------- Core Integrity 0/250 Matter 300/300 Energy 200/200 System Corruption 2% Temperature Cool (6) Movement Rolling (110) Location -10/Subcaves Parts ------- > --- POWER (1) -------- Subdweller Power Source > --- PROPULSION (2) --- Subdweller Monowheel > --- UTILITY (2) ------ Medium Storage Unit Seismic Detector > --- WEAPON (2) ------- (None) > --- INVENTORY (10) --- Ion Engine Subdweller Power Source Small Storage Unit Subdweller Optics Subdweller Optics Makeshift Light Armor Plating Peak State ------------ > --- POWER ------------ Ion Engine > --- PROPULSION ------- Light Treads Light Treads > --- UTILITY ---------- Small Storage Unit Seismic Detector > --- WEAPON ----------- EM Pulse Gun Small Laser > --- INVENTORY -------- (None) [Rating: 7] Favorites ----------- Power Ion Engine Engine Ion Engine Propulsion Light Treads Treads Light Treads Wheel Subdweller Monowheel Utility Seismic Detector Device Seismic Detector Storage Medium Storage Unit Weapon Assault Rifle Energy Gun Small Laser Energy Cannon Beam Cannon Ballistic Gun Assault Rifle Build | -11 -10 -10 ------- Run | Yrd Mat Sub Slots Evolved . | . . . Power . | . . . Propulsion . | . . . Utility . | . . . Weapon . | . . . Parts Attached 13 | 7 3 3 Power 3 | 1 . 2 Engine 3 | 1 . 2 Core . | . . . Reactor . | . . . Propulsion 3 | 2 . 1 Treads 2 | 2 . . Leg . | . . . Wheel 1 | . . 1 Hover . | . . . Flight . | . . . Utility 3 | 2 1 . Device 1 | 1 . . Storage 2 | 1 1 . Processor . | . . . Hackware . | . . . Protection . | . . . Artifact . | . . . Weapon 4 | 2 2 . Energy Gun 2 | 2 . . Energy Cannon 1 | . 1 . Ballistic Gun 1 | . 1 . Ballistic Cannon . | . . . Launcher . | . . . Special Weapon . | . . . Impact Weapon . | . . . Slashing Weapon . | . . . Piercing Weapon . | . . . Special Melee Weapon . | . . . Unidentified Prototypes . | . . . Corrupted Parts 1 | 1 . . System Corruption 2 | 2 . . Parts Lost 5 | . . 5 Power 1 | . . 1 Propulsion 2 | . . 2 Utility . | . . . Weapon 2 | . . 2 Highest Loss Streak 3 | . . 3 To Critical Strikes . | . . . Average Backups 1 | . 1 3 Power 1 | . . 1 Propulsion . | . . . Utility . | . . 2 Weapon . | . . . Tool/Special . | . . . Unused Backups 4 | . . 4 Power 1 | . . 1 Propulsion . | . . . Utility 3 | . . 3 Weapon . | . . . Tool/Special . | . . . Average Slot Usage (%) 93 | . 100 76 Engine 14 | . 14 14 Treads 22 | . 28 9 Wheel 2 | . . 7 Device 14 | . 14 14 Storage 14 | . 14 14 Energy Cannon 10 | . 13 4 Ballistic Gun 13 | . 13 11 Peak Build Rating 7 | 7 7 7 Average Rating 6 | 5 6 6 On Entrance 4 | . 7 7 Avg Prop Armor Cover (%) . | . . . Naked Turns . | . . . Heaviest Build 21 | 14 21 21 Greatest Support 40 | 40 40 40 Greatest Overweight (x) 5 | . . 5 Average Overweight (x) . | . . . Largest Inventory Capacity 10 | 8 10 10 Average Capacity 9 | 7 9 10 Most Carried 6 | . 2 6 Average Carried 1 | . 1 3 Final Capacity 10 | 8 10 10 Final Carried 6 | . 2 6 Class Distribution -------------------- 100% | Mutant Dominant Class ---------------- Mutant | -10/Materials Mutant | -10/Subcaves Resources | -11 -10 -10 ----------- Run | Yrd Mat Sub Matter Collected 496 | 239 172 85 Remotely . | . . . Salvage Created 683 | 106 463 114 Parts 54 | 14 33 7 Haulers Intercepted 1 | . 1 . Recyclers Shooed . | . . . Parts Field Recycled . | . . . Retrieved Matter . | . . . Parts Self-Destructed 1 | . . 1 Prevented . | . . . Parts Restored . | . . . Kills | -11 -10 -10 ------- Run | Yrd Mat Sub Combat Hostiles Destroyed 17 | . 15 2 Guns 9 | . 7 2 Cannons 8 | . 8 . Classes Destroyed 5 | 1 3 1 Tunneler 4 | 4 . . Hauler 1 | . 1 . Swarmer 7 | . 7 . Grunt 8 | . 8 . Subdweller 2 | . . 2 Best Kill Streak 5 | 4 5 1 Combat Bots Only 5 | . 5 1 Max Kills in Single Turn 1 | 1 1 1 Gunslinging . | . . . Exploded . | . . . Melee . | . . . Uniques/NPCs Destroyed . | . . . Combat | -11 -10 -10 -------- Run | Yrd Mat Sub Hostile Shots Fired 85 | . 60 25 Missed 20 | . 15 5 Hits 65 | . 45 20 Projectile 65 | . 45 20 Damage Taken 943 | . 488 455 Core 265 | . 106 159 Absorbed by Shields . | . . . Core Remaining (%) 100 | 100 . . Volleys Fired 69 | 10 39 20 Largest 2 | 2 2 2 Hottest 80 | 80 80 80 Shots Fired 121 | 20 78 23 Gun 79 | 20 39 20 Cannon 42 | . 39 3 Launcher . | . . . Special . | . . . Kinetic 59 | . 39 20 Thermal 52 | 10 39 3 Explosive . | . . . Electromagnetic 10 | 10 . . Robot Hit Streak 14 | 5 7 14 Robot Miss Streak 4 | 2 4 1 Penetration Max . | . . . Secondary Targets . | . . . Shots Hit Robots 69 | 10 45 14 Core Hits 27 | 4 19 4 Critical Kills 2 | . 2 . Critical Parts Destroyed . | . . . Critical Strikes 3 | 1 2 . Destroy 2 | . 2 . Corrupt 1 | 1 . . Melee Attacks . | . . . Impact . | . . . Slashing . | . . . Piercing . | . . . Sneak Attacks . | . . . Combat Hostiles . | . . . Follow-up Attacks . | . . . Damage Inflicted 982 | 125 690 167 Guns 561 | 125 269 167 Cannons 421 | . 421 . Explosions . | . . . Melee . | . . . Ramming . | . . . Kinetic 436 | . 269 167 Thermal 466 | 45 421 . Explosive . | . . . Electromagnetic 80 | 80 . . Impact . | . . . Slashing . | . . . Piercing . | . . . Highest Corruption 2 | 2 2 2 Average Corruption 2 | 2 2 2 Corruption Purged . | . . . Corruption Blocked . | . . . Effects 14 | . 9 5 Message Errors 3 | . 2 1 Matter Fused 2 | . 1 1 Heat Flow Errors 1 | . 1 . Energy Discharges 5 | . 3 2 Data Loss (minor) 2 | . 1 1 Data Loss (major) 1 | . 1 . Overload Shots . | . . . Overflow Damage 6 | . 6 . Projectiles 6 | . 6 . Explosions . | . . . Melee . | . . . Knockbacks . | . . . Impact . | . . . Kinetic . | . . . Secondary . | . . . Self-Inflicted Damage . | . . . Shots . | . . . Rammed . | . . . Targets Rammed . | . . . Kicked . | . . . Crushed . | . . . Highest Temperature 274 | 126 274 . Average Temperature 70 | 54 74 . Received Heat Transfer 285 | . 153 132 Effects 3 | . 3 . Interference 3 | . 3 . Siege Activations . | . . . Martial Activations . | . . . Shielding Activations . | . . . Robots Disrupted . | . . . Combat Hostiles . | . . . Robots Corrupted . | . . . Combat Hostiles . | . . . Parts Fried . | . . . Impact Corruptions . | . . . Robots Melted . | . . . Combat Hostiles . | . . . Parts Melted 1 | . 1 . Heat Transferred 988 | 100 888 . Parts Sabotaged . | . . . Parts Stolen . | . . . Parts Stripped . | . . . Power Chain Reactions . | . . . Alert | -11 -10 -10 ------- Run | Yrd Mat Sub Maximum Alert Level . | . . . Low Security (%) 100 | 100 100 . Level 1 . | . . . Level 2 . | . . . Level 3 . | . . . Level 4 . | . . . Level 5 . | . . . High Security . | . . . Max Security . | . . . Peak Influence 178 | 10 178 . Initial . | . . . Average 86 | 1 96 . Influence Increases 489 | 20 469 . Destroy 0b10 Robot/C 300 | . 300 . Destroy 0b10 Robot/NC 25 | 20 5 . Destroy Leader 62 | . 62 . Successful Hack 25 | . 25 . Select Force Hacks 30 | . 30 . Destroy Structure 2 | . 2 . Partial Spotted 15 | . 15 . Lose Combat Pursuer 30 | . 30 . Influence Decreases 489 | 20 374 95 Entered New Map 47 | . . 47 Time Decay 442 | 20 374 48 Squads Dispatched 3 | . 3 . Investigation 1 | . 1 . Extermination . | . . . Reinforcement 2 | . 2 . Assault . | . . . Garrison . | . . . Intercept . | . . . Searches Triggered . | . . . Construction Impeded . | . . . Haulers Reinforced . | . . . Active Scanning Responses . | . . . Cargo Convoy Interrupts . | . . . Stealth | -11 -10 -10 --------- Run | Yrd Mat Sub Distress Signals 2 | . 2 . Communications Jammed . | . . . Distress Signals . | . . . Times Spotted 28 | . 22 6 Peak Tracking Total 5 | . 5 4 Tactical Retreats 3 | . 2 1 Traps | -11 -10 -10 ------- Run | Yrd Mat Sub Traps Triggered 1 | . 1 . Indirectly . | . . . Trap Hack Attempts . | . . . Triggered . | . . . Disarmed . | . . . Reprogrammed . | . . . Reused . | . . . Traps Extracted . | . . . Installed . | . . . Triggered . | . . . Machines | -11 -10 -10 ---------- Run | Yrd Mat Sub Machines Disabled . | . . . Max in Single Turn . | . . . Machines Repaired . | . . . Machines Dismantled . | . . . Machines Sabotaged . | . . . Overloaded Fab Kills . | . . . Hacking | -11 -10 -10 --------- Run | Yrd Mat Sub Machines Accessed 6 | . 6 . Terminals 5 | . 5 . Fabricators . | . . . Repair Stations . | . . . Recycling Units 1 | . 1 . Scanalyzers . | . . . Garrison Access . | . . . Total Hacks 19 | . 19 . Successful 11 | . 11 . Failed 8 | . 8 . Catastrophic . | . . . Database Lockouts . | . . . Manual 19 | . 19 . Terminals 18 | . 18 . Fabricators . | . . . Repair Stations . | . . . Recycling Units 1 | . 1 . Scanalyzers . | . . . Garrison Access . | . . . Terminal Hacks 3 | . 3 . Terminal Index 1 | . 1 . Zone Layout 2 | . 2 . Fabricator Hacks . | . . . Repair Station Hacks . | . . . Recycling Unit Hacks . | . . . Scanalyzer . | . . . Garrison Access Hacks . | . . . Unauthorized Hacks 8 | . 8 . Terminals 7 | . 7 . Botnet 2 | . 2 . Skim 5 | . 5 . Fabricators . | . . . Repair Stations . | . . . Recycling Units 1 | . 1 . Tunnel 1 | . 1 . Scanalyzers . | . . . Garrison Access . | . . . Data Cores Recovered . | . . . Used . | . . . Hacking Detections 5 | . 5 . Full Trace Events . | . . . Feedback Events . | . . . Feedback Blocked . | . . . Robot Schematics Acquired . | . . . Robots Built . | . . . Authchips . | . . . Time . | . . . Total Robot Build Rating . | . . . Part Schematics Acquired . | . . . Parts Built . | . . . Authchips . | . . . Time . | . . . Total Part Build Rating . | . . . Part Studies Acquired . | . . . Parts Repaired . | . . . Time . | . . . Parts Recycled . | . . . Recycled Matter . | . . . Retrieved Matter . | . . . Retrieved Components . | . . . Parts Scanalyzed . | . . . Part Schematics Acquired . | . . . Parts Damaged . | . . . Bothacking | -11 -10 -10 ------------ Run | Yrd Mat Sub Used RIF Installer . | . . . Robots Hacked . | . . . Non-combat . | . . . Combat . | . . . Robot Hacks Applied . | . . . Relay Couplers Released . | . . . Fabnet Peak Effective % . | . . . Robots Rewired . | . . . Allies Hacked . | . . . Hacks Repelled . | . . . Allies | -11 -10 -10 -------- Run | Yrd Mat Sub Total Allies . | . . . Largest Group . | . . . Highest-Rated Group . | . . . Highest-Rated Ally . | . . . Total Orders . | . . . Ally Attacks . | . . . Total Damage . | . . . Kills . | . . . Allies Corrupted . | . . . Allies Melted . | . . . Intel | -11 -10 -10 ------- Run | Yrd Mat Sub Active Infowar (turns) 1363 | 18 973 372 Seismic 1363 | 18 973 372 Robot Analysis Total . | . . . Derelict Logs Recovered 1 | . . 1 Drone Launches . | . . . Drone Recoveries . | . . . Exploration | -11 -10 -10 ------------- Run | Yrd Mat Sub Turns Passed 1461 | 116 973 372 Spaces Moved 585 | 47 335 203 Core 3 | 1 . 2 Treads 415 | 46 335 34 Legs . | . . . Wheels 167 | . . 167 Hover . | . . . Flight . | . . . Fastest Speed 50 | 50 160 110 Average Speed 146 | 157 160 120 Slowest Speed 300 | 160 160 300 Overloaded Moves . | . . . Propulsion Burnouts . | . . . Robots Hopped . | . . . Potential Cave-ins . | . . . Cave-ins Triggered . | . . . Exploration Rate (%) 28 | 5 60 19 Regions Visited 2 Branch Regions 1 Pre-discovered Areas 4 | . 3 1 Known Exits Taken . | . . . Unknown Exits Taken 2 | 1 1 . Scrap Searched . | . . . Spaces Dug . | . . . Terrain Destroyed . | . . . Melee . | . . . Projectile . | . . . AOE . | . . . Terrain Rammed . | . . . Walls Destroyed . | . . . Machines Disabled . | . . . Actions | -11 -10 -10 --------- Run | Yrd Mat Sub Total 1068 | 66 695 307 Wait 393 | 3 314 76 Move 583 | 46 334 203 Hop . | . . . Pick Up 6 | . 1 5 Fast Attach 10 | 7 2 1 Attach 1 | . . 1 Detach 2 | . 2 . Swap 2 | . 1 1 Drop 2 | . 2 . Fire 69 | 10 39 20 Melee . | . . . Ram . | . . . Kick . | . . . Crush . | . . . Escape Stasis . | . . . Rewire . | . . . Trap . | . . . Miscellaneous . | . . . Route ------- -11/Scrapyard -10/Materials (discovered 6 exits: *Mat x3 / Min x2 / [*Sub]) -10/Subcaves (discovered 2 exits: Mat x2) History --------- Turn | Location | Event 5 | -11/Scrapyard | Discovered new exit (range 16) 117 | -11/Scrapyard | Entered Materials 311 | -10/Materials | Build established: Mutant 721 | -10/Materials | Discovered new exit (range 9) 775 | -10/Materials | Discovered new exit (range 10) 869 | -10/Materials | Identified exit to Materials 869 | -10/Materials | Identified exit to Mines 958 | -10/Materials | Learned location of Mines (-10) 1018 | -10/Materials | Learned 4 Subcaves zone layouts 1020 | -10/Materials | Loaded intel: 10 trap records 1033 | -10/Materials | Learned 2 Mines zone layouts 1054 | -10/Materials | Learned Storage garrison access intel 1090 | -10/Materials | Entered Subcaves 1091 | -10/Subcaves | Approached by a straggling Scientist 1091 | -10/Subcaves | Identified exit to Materials 1201 | -10/Subcaves | Core integrity fell below 50% 1229 | -10/Subcaves | Lost 3 parts (1p1n1w) 1250 | -10/Subcaves | Core integrity fell below 20% 1260 | -10/Subcaves | Shifting Twisted Machinery released Sub. Laser 1291 | -10/Subcaves | Shifting Twisted Machinery released Battle Rifle 1378 | -10/Subcaves | Learned Materials trap positions 1389 | -10/Subcaves | Learned location of Zion (-7) 1389 | -10/Subcaves | Met a Zionite searching for "candidates" 1400 | -10/Subcaves | A Subdweller sparked back to life 1400 | -10/Subcaves | A Subdweller sparked back to life 1400 | -10/Subcaves | A Subdweller sparked back to life 1452 | -10/Subcaves | Ambushed by Subdweller buried in earth 1462 | -10/Subcaves | Destroyed by N1-HVP(R) with Subdweller Laser Last Messages --------------- at any moment. For your health and safety might I suggest a trip to Zion?" World map updated: -7/Zion. CF-06N(c): "I think it's somewhere south of here" 01400_ PQ-O6B(R) creaks and sparks as it begins to move. 01400_ 2Z-ACQ(R) creaks and sparks as it begins to move. 01400_ 5X-ESF(R) creaks and sparks as it begins to move. 01403_ Assault Rifle destroyed. 01406_ 5X-ESF(R) affixes Scrap Shield Fragment to Scrap Shield. 01424_ Acquired Mak. Light Armor Plating. 01433_ Acquired 11 matter. 01441_ Acquired 2 matter. 01452_ N1-HVP(R) comes tumbling out of the earth. 01453_ LDKXS:MN|ET2VGWAXUHM5D XZ=YU:ZCQPT Map ----- +----------------------------------------------------+ | ??????## ###????? #??????????????????????? | | ??????# ####???? #??????????????????????? | | ??????## ##### ##??????????????????????? | | ???????#### #??????????????????????? | | ??????????### # # ## #??????????????????????? | | ????????????###### # # #??????????????????????? | | ????????????????# ##??????????????????????? | | ????????????????## #??????????????????????? | | ?????????????????# ## ###??????????????????????? | | ????????????????## #??#????????????????????????? | | ????????????????# #???????????????????????????? | | ????????????###?## ##???????????????????????????? | | ??????????### ### ###????????????????????????????? | | ??????????# ##??????????????????????????????? | | ?????????## #"##???????????????????????????????? | | ?????????# ### ##????????????????????????????????? | | ?????????#%#?###?????????????????????????????????? | | ?????????# ##????????????????????????????????????? | | ?????????## ##???????????????????????????????????? | | ?????????# ##??????????????????????????????????? | | ?????????## # ##?????????????????????????????????? | | ??????????#### ##??????###???????????????????????? | | ????????????# # ##?????# #???????????????????????? | | ????????????#### #????## #??? ? ?????#???????????? | | ??????????????# ##?#### ##????? ????#####???????? | | ??????????????# ####R @#?????##???# # ####????? | | ??????????????## %### ## #??####??## ####?? | | ???????????????# "##?# #?#??#?### <" ### | | ???????????????# #######???# ##??####""" #"" ## | | ??????????????# # ??????????# #?????## ##### | | ??????????????##?#??????????? #??##### ##??## | | ???????????????????????????? #### ##" ##??# | | ????????????????????????????? ## # ##?# | | ?????????????????????????????? "#?## | | ?????????????????????????????? ## "#### | | ??????????????????????????????? ###### "" | | ????????????????????????????#??##????# " # | | ????????????????????????????####?????#### # # # # | | ????????????????????????????????????????########## | | ?????????????????????????????????????????????????? | | ?????????????????????????????????????????????????? | | ?????????????????????????????????????????????????? | | ?????????????????????????????????????????????????? | | ?????????????????????????????????????????????????? | | ?????????????????????????????????????????????????? | | ?????????????????????????????????????????????????? | | ?????????????????????????????????????????????????? | | ?????????????????????????????????????????????????? | | ?????????????????????????????????????????????????? | | ?????????????????????????????????????????????????? | +----------------------------------------------------+ Best States ------------- Heat Dissipation 25 Energy Generation 15 Energy Capacity 250 Matter Stores 300 Matter Capacity 300 Sight Range 16 Terrain Scan Density 10 Evasion (%) 40 Recoil Reduction 2 Item Schematics ----------------- None Robot Schematics ------------------ None Fabricated ------------ Nothing Repaired ---------- Nothing Studied --------- None Alien Tech Used ----------------- None Achievements -------------- None Challenges ------------ None Game ------ Seed AerolevMappingShielding Manual? 0 Play Time 00:09:43 Cumulative 67.9 hours Start 2026.07.17 @ 09:43:46 End 2026.07.17 @ 09:51:21 Sessions 1 Manual Loads 0 Difficulty Rogue Special Mode None Game No. 77 Rogue 77 Adventurer 0 Explorer 0 Win Type - Total 1 Types 1/0/0/0/0/0/0/0/0/0 Lore% 54 Gallery% 42 Achievement% 38 Wizard Run 0 Options --------- Layout 1 ASCII 0 Keyboard 1 Movement Numpad Keybinds 1 Fullscreen 2 Font 24/Smallcaps Map View 50x40 Zoom Use 0% Tactical HUD 1 Map Filters NONE Filters NONE Steam 1 RUN: 64a44bcd-6a14-465a-b36e-b432b4620dbf